fUSD/lending_fUSD_20250404
["ID","MTS","AMOUNT","RATE_DAILY","PERIOD"]
[357100040,1743742246196,-1054.76,0.00023349,2]
[357100041,1743742246205,-166.66,0.00023406,2]
[357100042,1743742246216,-313.12197416,0.00023489,2]
[357100043,1743742246225,-1994.08495733,0.00023711,2]
[357100044,1743742246235,-777.68,0.00023836,2]
[357100045,1743742246245,-152.14,0.0002389,2]
[357100046,1743742246256,-94695.26,0.000239,2]
[357100047,1743742246266,-151.0,0.000239,7]
[357100048,1743742246276,-174.889349,0.000239,7]
[357100049,1743742246286,-174.889349,0.000239,7]
[357100050,1743742246295,-911.690793,0.000239,7]
[357100051,1743742246306,-911.690793,0.000239,7]
[357100052,1743742246316,-40280.43515172,0.00024,2]
[357100053,1743742246326,-2000.0,0.00024,4]
[357100054,1743742246335,-166.66,0.00024109,2]
[357100055,1743742246345,-313.12197416,0.00024144,2]
[357100056,1743742246354,-1994.08495733,0.00024256,2]
[357100057,1743742246364,-165.68,0.00024633,2]
[357100058,1743742246374,-150.0,0.00024657,2]
[357100059,1743742246384,-1000.0,0.00024658,2]
[357100060,1743742246394,-933.78,0.00024773,2]
[357100061,1743742246403,-457.85,0.00024773,2]
[357100062,1743742246412,-783.8,0.00024773,2]
[357100063,1743742246421,-444.61,0.00024773,2]
[357100064,1743742246431,-783.8,0.00024773,2]
[357100065,1743742246440,-444.61,0.00024773,2]
[357100066,1743742246450,-783.8,0.00024773,2]
[357100067,1743742246460,-444.61,0.00024773,2]
[357100068,1743742246469,-444.61,0.00024773,2]
[357100069,1743742246479,-783.8,0.00024773,2]
[357100070,1743742246489,-444.61,0.00024773,2]
[357100071,1743742246498,-783.8,0.00024773,2]
[357100072,1743742246509,-152.14,0.0002479,2]
[357100073,1743742246518,-152.14,0.0002479,2]
[357100074,1743742246528,-152.14,0.0002479,2]
[357100075,1743742246538,-151.0,0.000248,7]
[357100076,1743742246547,-174.889349,0.000248,7]
[357100077,1743742246557,-174.889349,0.000248,7]
[357100078,1743742246567,-1994.08495733,0.000248,2]
[357100079,1743742246577,-911.690793,0.000248,7]
[357100080,1743742246587,-911.690793,0.000248,7]
[357100081,1743742246596,-313.12197416,0.000248,2]
[357100082,1743742246606,-496735.803196,0.000248,3]
[357100083,1743742246616,-166.66,0.00024812,2]
[357100084,1743742246626,-182.94825,0.0002486,2]
[357100085,1743742246637,-500.0,0.00024873,2]
[357100086,1743742246646,-2281.4782794,0.00024883,2]
[357100087,1743742246656,-1147.2961419,0.00024883,2]
[357100088,1743742246666,-2088.7648192,0.00024883,2]
[357100089,1743742246675,-192.793727,0.000249,2]
[357100090,1743742246685,-186.45251484,0.000249,2]
[357100091,1743742246695,-174.889349,0.000249,7]
[357100092,1743742246705,-174.889349,0.000249,7]
[357100093,1743742246715,-911.690793,0.000249,7]
[357100094,1743742246725,-911.690793,0.000249,7]
[357100095,1743742246735,-7508.76543261,0.000249,3]
[357100096,1743742246745,-1838.93319766,0.00025,2]
[357100097,1743742246755,-1024.00181746,0.00025,2]
[357100098,1743742246765,-160.90182557,0.00025,2]
[357100099,1743742246775,-1755.74563782,0.00025,2]
[357100101,1743742246786,-400.0,0.00025,2]
[357100103,1743742246796,-152.14,0.00025,2]
[357100105,1743742246806,-11292.27341226,0.0002501,2]
[357100107,1743742246816,-99000.0,0.0002501,2]
[357100109,1743742246826,-151.0,0.0002501,7]
[357100111,1743742246835,-3249.94773005,0.000251,2]
[357100112,1743742246844,-174.889349,0.000251,7]
[357100113,1743742246854,-174.889349,0.000251,7]
[357100114,1743742246864,-911.690793,0.000251,7]
[357100115,1743742246878,-911.690793,0.000251,7]
[357100116,1743742246888,-280.0,0.000253,10]
[357100117,1743742246898,-767.55171233,0.00025452,2]
[357100118,1743742246908,-621.6045487,0.00025452,2]
[357100119,1743742246919,-1000.0,0.00025452,2]
[357100120,1743742246929,-1000.0,0.00025452,2]
[357100121,1743742246939,-1000.0,0.00025452,2]
[357100122,1743742246951,-1000.0,0.00025498,2]
[357100123,1743742246961,-1054.76,0.00025613,2]
[357100124,1743742246970,-783.8,0.00025732,2]
[357100125,1743742246979,-444.61,0.00025732,2]
[357100126,1743742246989,-444.61,0.00025732,2]
[357100127,1743742246999,-783.8,0.00025732,2]
[357100128,1743742247008,-783.8,0.00025732,2]
[357100129,1743742247018,-444.61,0.00025732,2]
[357100130,1743742247028,-444.61,0.00025732,2]
[357100131,1743742247037,-783.8,0.00025732,2]
[357100132,1743742247047,-783.8,0.00025732,2]
[357100133,1743742247056,-729.4,0.00025732,2]
[357100134,1743742247066,-783.8,0.00025732,2]
[357100135,1743742247076,-165.68,0.0002593,2]
[357100136,1743742247086,-576.7489133,0.0002599,2]
[357100137,1743742247095,-4433.65,0.00026,2]
[357100138,1743742247104,-2000.0,0.00026,4]
[357100139,1743742247114,-150.0,0.00026027,2]
[357100140,1743742247124,-12247.09681758,0.000264,2]
[357100141,1743742247134,-501.58752862,0.00026479,10]
[357100142,1743742247143,-152.0,0.00026804,3]
[357100143,1743742247152,-192.41,0.00026849,2]
[357100144,1743742247162,-627.71,0.00026849,2]
[357100145,1743742247172,-250.0,0.00027,2]
[357100146,1743742247182,-3529.85,0.00027123,2]
[357100147,1743742247191,-165.68,0.00027226,2]
[357100148,1743742247200,-154.16,0.00027238,2]
[357100149,1743742247210,-196.82,0.00027238,2]
[357100150,1743742247220,-906.48,0.00027238,2]
[357100151,1743742247229,-357.9,0.00027238,2]
[357100152,1743742247239,-224.75,0.00027238,2]
[357100153,1743742247249,-154.72,0.00027238,2]
[357100154,1743742247260,-150.0,0.00027238,2]
[357100155,1743742247269,-347.45,0.00027238,2]
[357100156,1743742247278,-150.0,0.00027238,2]
[357100157,1743742247288,-347.45,0.00027238,2]
[357100158,1743742247298,-347.45,0.00027238,2]
[357100159,1743742247308,-150.0,0.00027238,2]
[357100160,1743742247318,-150.0,0.00027238,2]
[357100161,1743742247327,-347.45,0.00027238,2]
[357100162,1743742247337,-197.77,0.00027238,2]
[357100163,1743742247347,-347.45,0.00027238,2]
[357100164,1743742247356,-150.0,0.00027397,2]
[357100165,1743742247367,-500.0,0.00027397,2]
[357100166,1743742247377,-2510.57,0.00027397,2]
[357100167,1743742247386,-158.35,0.00027397,2]
[357100168,1743742247396,-325.32419687,0.000274,2]
[357100169,1743742247406,-433.0,0.000274,2]
[357100170,1743742247416,-1200.0,0.000274,2]
[357100171,1743742247425,-500.0,0.00027424,2]
[357100172,1743742247435,-510.73535923,0.00027452,2]
[357100173,1743742247445,-4266.79006517,0.000275,2]
[357100174,1743742247455,-152.0,0.00027587,4]
[357100175,1743742247464,-2000.0,0.00027656,5]
[357100176,1743742247474,-944.0,0.000278,5]
[357100177,1743742247483,-1000.0,0.00027816,2]
[357100178,1743742247493,-204.0,0.0002783,15]
[357100179,1743742247502,-1054.76,0.00027877,2]
[357100180,1743742247512,-276.27,0.00028,2]
[357100181,1743742247522,-1081.87014517,0.00028,4]
[357100182,1743742247531,-347.45,0.0002806,2]
[357100183,1743742247541,-347.45,0.0002806,2]
[357100184,1743742247550,-347.45,0.0002806,2]
[357100185,1743742247560,-347.45,0.0002806,2]
[357100186,1743742247570,-775.81,0.0002806,2]
[357100187,1743742247579,-152.0,0.00028371,5]
[357100188,1743742247589,-150.0,0.00028767,2]
[357100189,1743742247598,-2510.57,0.00028767,2]
[357100190,1743742247607,-152.14,0.0002899,2]
[357100191,1743742247617,-34335.39125264,0.00029,2]
[357100192,1743742247627,-300.0,0.00029,2]
[357100193,1743742247636,-152.0,0.00029154,6]
[357100194,1743742247646,-151.0,0.0002989,7]
[357100195,1743742247702,-186.45251484,0.000299,2]
[357100196,1743742247712,-152.0,0.00029937,7]
[357100197,1743742247721,-2281.4782794,0.0002997,2]
[357100198,1743742247731,-1147.2961419,0.0002997,2]
[357100199,1743742247740,-2088.7648192,0.0002997,2]
[357100200,1743742247750,-152.14,0.0002998,2]
[357100201,1743742247761,-152.14,0.0002998,2]
[357100202,1743742247771,-152.14,0.0002998,2]
[357100203,1743742247781,-471013.75680026,0.0002999,2]
[357100204,1743742247790,-151.0,0.0002999,7]
[357100205,1743742247800,-174.889349,0.0002999,7]
[357100206,1743742247809,-174.889351,0.0002999,7]
[357100207,1743742247819,-911.690793,0.0002999,7]
[357100208,1743742247828,-911.690795,0.0002999,7]
[357100209,1743742247839,-152.14,0.0002999,2]
[357100210,1743742247849,-4999.99,0.0003,2]
[357100211,1743742247858,-45996.03368328,0.0003,2]
[357100212,1743742247868,-3978.01414756,0.0003,3]
[357100213,1743742247882,-286.25698983,0.0003,2]
[357100214,1743742247891,-137466.56587593,0.0003,2]
[357100215,1743742247901,-151.0,0.0003,7]
[357100216,1743742247911,-212.0,0.0003,2]
[357100217,1743742247921,-150.0,0.00030136,2]
[357100218,1743742247931,-2510.57,0.00030137,2]
[357100219,1743742247940,-1054.76,0.0003014,2]
[357100220,1743742247949,-634.70901779,0.00030172,2]
[357100221,1743742247960,-500.0,0.00030184,7]
[357100222,1743742247971,-43605.41086411,0.00030187,3]
[357100223,1743742247980,-502.246691,0.00030352,5]
[357100224,1743742247989,-176.54203653,0.00030624,2]
[357100225,1743742247999,-152.0,0.0003072,8]
[357100226,1743742248008,-350.0,0.00031,2]
[357100227,1743742248018,-500.0,0.0003128,7]
[357100228,1743742248029,-500.0,0.0003128,7]
[357100229,1743742248039,-152.0,0.00031503,9]
[357100230,1743742248048,-150.0,0.00031506,2]
[357100231,1743742248058,-2510.57,0.00031507,2]
[357100232,1743742248068,-150.33173402,0.00031603,14]
[357100233,1743742248078,-150.0,0.00031604,14]
[357100234,1743742248087,-49687.93587669,0.0003167,40]
[357100235,1743742248097,-500.0,0.00031828,7]
[357100236,1743742248106,-152.61,0.00032,2]
[357100237,1743742248116,-346.0,0.000321,120]
[357100238,1743742248125,-500.0,0.00032102,7]
[357100239,1743742248135,-150.0,0.00032229,2]
[357100240,1743742248144,-150.0,0.00032248,2]
[357100241,1743742248154,-152.0,0.00032286,10]
[357100242,1743742248164,-2000.0,0.00032337,5]
[357100243,1743742248174,-1000.0,0.00032364,2]
[357100244,1743742248184,-1054.76,0.00032404,2]
[357100245,1743742248194,-150.0,0.00032413,2]
[357100246,1743742248203,-1000.0,0.00032609,2]
[357100247,1743742248213,-1000.0,0.00032645,2]
[357100248,1743742248224,-192.41,0.00032646,2]
[357100249,1743742248233,-627.71,0.00032646,2]
[357100250,1743742248243,-1000.0,0.00032669,2]
[357100251,1743742248252,-1000.0,0.00032678,2]
[357100252,1743742248263,-13655.81974624,0.000327,2]
[357100253,1743742248273,-152.14,0.00032702,2]
[357100254,1743742248283,-444.61,0.00032712,2]
[357100255,1743742248293,-783.8,0.00032712,2]
[357100256,1743742248302,-444.61,0.00032712,2]
[357100257,1743742248311,-783.8,0.00032712,2]
[357100258,1743742248320,-444.61,0.00032712,2]
[357100259,1743742248330,-889.22,0.00032712,2]
[357100260,1743742248338,-1567.6,0.00032712,2]
[357100261,1743742248348,-994.81,0.00032712,2]
[357100262,1743742248357,-783.8,0.00032712,2]
[357100263,1743742248367,-150.0,0.00032727,2]
[357100264,1743742248377,-1000.0,0.00032753,2]
[357100265,1743742248386,-150.0,0.00032788,2]
[357100266,1743742248395,-150.0,0.00032801,2]
[357100267,1743742248405,-150.0,0.00032837,2]
[357100268,1743742248414,-150.0,0.0003285,2]
[357100269,1743742248423,-150.0,0.00032876,2]
[357100270,1743742248432,-2510.57,0.00032877,2]
[357100271,1743742248441,-10000.0,0.00032877,30]
[357100272,1743742248451,-152.14,0.0003289,2]
[357100273,1743742248461,-150.0,0.00032899,2]
[357100274,1743742248470,-237.83667558,0.000329,30]
[357100275,1743742248480,-186035.33,0.000329,14]
[357100276,1743742248490,-152.67856202,0.000329,120]
[357100277,1743742248500,-433.63792807,0.000329,2]
[357100278,1743742248510,-635.0,0.000329,2]
[357100279,1743742248520,-150.0,0.0003292,2]
[357100280,1743742248529,-500.0,0.00032924,60]
[357100281,1743742248538,-500.0,0.00032924,60]
[357100282,1743742248547,-1000.0,0.00032924,2]
[357100283,1743742248557,-160.91,0.00032932,120]
[357100284,1743742248566,-2281.4782794,0.00032977,2]
[357100285,1743742248576,-1147.2961419,0.00032977,2]
[357100286,1743742248585,-2088.7648192,0.00032977,2]
[357100287,1743742248595,-152.14,0.0003299,2]
[357100288,1743742248605,-152.14,0.0003299,2]
[357100289,1743742248615,-156909.01884198,0.00033,2]
[357100290,1743742248624,-242491.78523658,0.00033,2]
[357100291,1743742248633,-40173.87043946,0.00033,2]
[357100292,1743742248642,-400.0,0.00033,2]
[357100293,1743742248651,-150.0,0.00033015,2]
[357100294,1743742248660,-150.0,0.00033049,2]
[357100295,1743742248670,-152.0,0.0003307,11]
[357100296,1743742248679,-169.2527151,0.0003307,5]
[357100297,1743742248688,-150.0,0.00033081,2]
[357100298,1743742248698,-150.0,0.00033093,2]
[357100299,1743742248708,-150.0,0.00033094,2]
[357100300,1743742248717,-150.0,0.00033112,2]
[357100301,1743742248727,-911.6675382,0.00033125,2]
[357100302,1743742248737,-150.0,0.00033133,2]
[357100303,1743742248746,-150.0,0.00033145,2]
[357100304,1743742248756,-200.0,0.00033151,2]
[357100305,1743742248766,-170.08483497,0.0003317,2]
[357100306,1743742248776,-1000.0,0.00033206,2]
[357100307,1743742248787,-677.02102955,0.00033223,2]
[357100308,1743742248797,-150.0,0.00033226,2]
[357100309,1743742248807,-150.0,0.00033254,2]
[357100310,1743742248817,-150.0,0.00033277,2]
[357100311,1743742248826,-150.0,0.00033303,2]
[357100312,1743742248836,-158.58,0.00033315,2]
[357100313,1743742248845,-1919.22273407,0.0003333,120]
[357100314,1743742248855,-150.0,0.0003333,2]
[357100315,1743742248864,-150.0,0.00033359,2]
[357100316,1743742248879,-150.0,0.00033359,2]
[357100317,1743742248889,-150.0,0.00033423,2]
[357100318,1743742248899,-152.14,0.0003343,2]
[357100319,1743742248909,-1000.0,0.0003344,2]
[357100320,1743742248919,-1000.0,0.00033442,2]
[357100321,1743742248929,-150.0,0.00033448,2]
[357100322,1743742248938,-500.0,0.00033472,60]
[357100323,1743742248950,-150.0,0.00033485,2]
[357100324,1743742248960,-150.0,0.00033503,2]
[357100325,1743742248970,-150.0,0.0003351,2]
[357100326,1743742248983,-150.0,0.00033515,2]
[357100327,1743742248993,-150.0,0.0003355,2]
[357100328,1743742249002,-150.0,0.00033588,2]
[357100329,1743742249013,-150.0,0.00033604,2]
[357100330,1743742249023,-150.0,0.00033627,2]
[357100331,1743742249032,-150.0,0.00033639,2]
[357100332,1743742249041,-150.0,0.00033666,2]
[357100333,1743742249051,-150.0,0.00033692,2]
[357100334,1743742249060,-150.0,0.00033707,2]
[357100335,1743742249070,-150.0,0.00033723,2]
[357100336,1743742249079,-150.0,0.00033723,2]
[357100337,1743742249088,-150.0,0.00033728,2]
[357100338,1743742249098,-817.94,0.00033743,59]
[357100339,1743742249108,-150.0,0.00033765,2]
[357100340,1743742249118,-150.0,0.00033791,2]
[357100341,1743742249127,-150.0,0.00033795,2]
[357100342,1743742249136,-150.0,0.00033832,2]
[357100343,1743742249145,-196.97419579,0.00033841,2]
[357100344,1743742249155,-150.0,0.0003387,2]
[357100345,1743742249164,-150.0,0.00033909,2]
[357100346,1743742249173,-150.0,0.00033911,2]
[357100347,1743742249182,-150.0,0.00033936,2]
[357100348,1743742249191,-150.0,0.00033941,2]
[357100349,1743742249200,-150.0,0.00033943,2]
[357100350,1743742249209,-1000.0,0.00033958,2]
[357100351,1743742249218,-150.0,0.00033975,2]
[357100352,1743742249228,-150.0,0.0003399,2]
[357100353,1743742249238,-150.0,0.00033995,2]
[357100354,1743742249252,-21745.72614626,0.00034,30]
[357100355,1743742249261,-300.0,0.00034,2]
[357100356,1743742249270,-150.0,0.00034005,2]
[357100357,1743742249279,-150.0,0.00034007,2]
[357100358,1743742249288,-500.0,0.0003402,60]
[357100359,1743742249297,-535.04797193,0.0003402,60]
[357100360,1743742249306,-150.0,0.00034031,2]
[357100361,1743742249315,-501.58752862,0.00034058,33]
[357100362,1743742249325,-150.0,0.00034062,2]
[357100363,1743742249335,-150.0,0.00034085,2]
[357100364,1743742249345,-150.0,0.00034087,2]
[357100365,1743742249355,-150.0,0.0003409,2]
[357100366,1743742249365,-186035.33,0.000341,14]
[357100367,1743742249374,-500.0,0.00034113,7]
[357100368,1743742249383,-500.0,0.00034113,7]
[357100369,1743742249393,-500.0,0.00034113,7]
[357100370,1743742249402,-500.0,0.00034113,7]
[357100371,1743742249412,-515.42,0.00034113,7]
[357100372,1743742249422,-500.0,0.00034113,7]
[357100373,1743742249431,-500.0,0.00034113,7]
[357100374,1743742249440,-500.0,0.00034113,7]
[357100375,1743742249450,-437.72,0.00034113,7]
[357100376,1743742249459,-500.0,0.00034113,7]
[357100377,1743742249468,-500.0,0.00034113,7]
[357100378,1743742249478,-500.0,0.00034113,7]
[357100379,1743742249487,-500.0,0.00034113,7]
[357100380,1743742249496,-500.0,0.00034113,7]
[357100381,1743742249505,-500.0,0.00034113,7]
[357100382,1743742249514,-500.0,0.00034113,7]
[357100383,1743742249524,-500.0,0.00034113,7]
[357100384,1743742249533,-500.0,0.00034113,7]
[357100385,1743742249542,-500.0,0.00034113,7]
[357100386,1743742249551,-500.0,0.00034113,7]
[357100387,1743742249560,-500.0,0.00034113,7]
[357100388,1743742249569,-500.0,0.00034113,7]
[357100389,1743742249578,-500.0,0.00034113,7]
[357100390,1743742249587,-500.0,0.00034113,7]
[357100391,1743742249597,-500.0,0.00034113,7]
[357100392,1743742249607,-500.0,0.00034113,7]
[357100393,1743742249615,-500.0,0.00034113,7]
[357100394,1743742249624,-500.0,0.00034113,7]
[357100395,1743742249633,-500.0,0.00034113,7]
[357100396,1743742249643,-500.0,0.00034113,7]
[357100397,1743742249652,-500.0,0.00034113,7]
[357100398,1743742249662,-500.0,0.00034113,7]
[357100399,1743742249671,-500.0,0.00034113,7]
[357100400,1743742249680,-500.0,0.00034113,7]
[357100401,1743742249689,-500.0,0.00034113,7]
[357100402,1743742249699,-500.0,0.00034113,7]
[357100403,1743742249708,-500.0,0.00034113,7]
[357100404,1743742249718,-500.0,0.00034113,7]
[357100405,1743742249727,-500.0,0.00034113,7]
[357100406,1743742249737,-500.0,0.00034113,7]
[357100407,1743742249747,-500.0,0.00034113,7]
[357100408,1743742249757,-500.0,0.00034113,7]
[357100409,1743742249767,-580.83,0.00034113,7]
[357100410,1743742249777,-500.0,0.00034115,7]
[357100411,1743742249787,-500.0,0.00034115,7]
[357100412,1743742249797,-500.0,0.00034115,7]
[357100413,1743742249807,-150.0,0.00034122,2]
[357100414,1743742249816,-1717.69334092,0.00034126,2]
[357100415,1743742249826,-150.0,0.00034133,2]
[357100416,1743742249835,-150.0,0.00034158,2]
[357100417,1743742249845,-150.0,0.00034163,2]
[357100418,1743742249855,-2000.0,0.000342,2]
[357100419,1743742249865,-150.0,0.00034212,2]
[357100420,1743742249878,-1000.0,0.00034242,2]
[357100421,1743742249888,-150.0,0.00034246,2]
[357100422,1743742249898,-1000.0,0.00034271,2]
[357100423,1743742249907,-150.0,0.00034274,2]
[357100424,1743742249916,-150.0,0.00034278,2]
[357100425,1743742249926,-1000.0,0.00034278,2]
[357100426,1743742249936,-150.0,0.00034296,2]
[357100427,1743742249946,-150.0,0.00034315,2]
[357100428,1743742249957,-1000.0,0.0003435,2]
[357100429,1743742249969,-150.0,0.00034377,2]
[357100430,1743742249978,-1122.21759097,0.00034413,5]
[357100431,1743742249988,-953.58277228,0.00034413,5]
[357100432,1743742249997,-150.0,0.00034421,2]
[357100433,1743742250007,-150.0,0.00034431,2]
[357100434,1743742250016,-150.0,0.00034435,2]
[357100435,1743742250025,-230.17848616,0.00034442,2]
[357100436,1743742250035,-150.0,0.00034443,2]
[357100437,1743742250045,-150.0,0.00034448,2]
[357100438,1743742250054,-150.0,0.00034448,2]
[357100439,1743742250064,-150.0,0.00034462,2]
[357100440,1743742250074,-150.0,0.00034487,2]
[357100441,1743742250084,-150.0,0.00034499,2]
[357100442,1743742250093,-536.0,0.000345,2]
[357100443,1743742250103,-150.0,0.00034549,2]
[357100444,1743742250112,-150.0,0.00034551,2]
[357100445,1743742250121,-500.0,0.00034568,60]
[357100446,1743742250131,-150.0,0.00034615,2]
[357100447,1743742250140,-150.0,0.00034629,2]
[357100448,1743742250149,-150.0,0.0003463,2]
[357100449,1743742250159,-150.0,0.00034631,2]
[357100450,1743742250168,-150.0,0.00034645,2]
[357100451,1743742250177,-150.0,0.00034666,2]
[357100452,1743742250186,-1054.76,0.00034668,2]
[357100453,1743742250195,-150.0,0.00034679,2]
[357100454,1743742250205,-150.0,0.00034686,2]
[357100455,1743742250215,-150.0,0.00034691,2]
[357100456,1743742250224,-1000.0,0.00034698,2]
[357100457,1743742250234,-5414.75621377,0.000347,2]
[357100458,1743742250243,-1804.92,0.000347,2]
[357100459,1743742250253,-1000.0,0.00034709,2]
[357100460,1743742250263,-1000.0,0.00034712,2]
[357100461,1743742250272,-150.0,0.0003472,2]
[357100462,1743742250282,-150.0,0.00034737,2]
[357100463,1743742250292,-150.0,0.00034741,2]
[357100464,1743742250301,-150.0,0.00034752,2]
[357100465,1743742250311,-67823.14506638,0.0003477,2]
[357100466,1743742250321,-255.0,0.000348,5]
[357100467,1743742250330,-150.0,0.00034806,2]
[357100468,1743742250339,-150.0,0.00034819,2]
[357100469,1743742250349,-150.0,0.0003483,2]
[357100470,1743742250359,-150.0,0.00034884,2]
[357100471,1743742250368,-690.65,0.000349,2]
[357100472,1743742250378,-152.53,0.000349,31]
[357100473,1743742250387,-152.53,0.000349,31]
[357100474,1743742250396,-152.53,0.000349,31]
[357100475,1743742250406,-152.53,0.000349,31]
[357100476,1743742250415,-186.45251484,0.000349,2]
[357100477,1743742250425,-502.958539,0.000349,16]
[357100478,1743742250435,-150.0,0.0003492,2]
[357100479,1743742250445,-150.0,0.00034921,2]
[357100480,1743742250455,-1000.0,0.00034922,2]
[357100481,1743742250465,-150.0,0.00034936,2]
[357100482,1743742250475,-2005.6862,0.00034936,3]
[357100483,1743742250485,-2075.9039,0.0003494,3]
[357100484,1743742250495,-935.8143,0.0003494,3]
[357100485,1743742250504,-2000.0,0.0003494,3]
[357100486,1743742250514,-150.0,0.00034944,2]
[357100487,1743742250523,-150.0,0.00034945,2]
[357100488,1743742250533,-2281.4782794,0.00034952,2]
[357100489,1743742250542,-1147.2961419,0.00034952,2]
[357100490,1743742250552,-150.0,0.00034961,2]
[357100491,1743742250561,-150.0,0.00034964,2]
[357100492,1743742250571,-150.0,0.00034965,2]
[357100493,1743742250580,-2088.7648192,0.00034966,2]
[357100494,1743742250590,-2281.4782794,0.00034976,2]
[357100495,1743742250600,-1147.2961419,0.00034976,2]
[357100496,1743742250609,-2088.7648192,0.00034976,2]
[357100497,1743742250619,-150.0,0.00034986,2]
[357100498,1743742250629,-4000.0,0.0003499,7]
[357100499,1743742250639,-405.13405367,0.0003499,2]
[357100500,1743742250649,-150.0,0.00034996,2]
[357100501,1743742250659,-1300000.0,0.00035,30]
[357100502,1743742250669,-162.1288257,0.00035,30]
[357100503,1743742250679,-1836.0,0.00035,40]
[357100504,1743742250688,-226.75306891,0.00035,2]
[357100505,1743742250698,-5640.36148116,0.00035,4]
[357100506,1743742250708,-219.69,0.00035,2]
[357100507,1743742250718,-168.86,0.00035,2]
[357100508,1743742250728,-1000.0,0.00035,5]
[357100509,1743742250738,-450.0,0.00035,2]
[357100510,1743742250747,-202.16,0.00035,30]
[357100511,1743742250758,-2006.94,0.00035,2]
[357100512,1743742250768,-150.0,0.00035001,2]
[357100513,1743742250778,-150.0,0.00035001,2]
[357100514,1743742250788,-150.0,0.00035036,2]
[357100515,1743742250798,-150.0,0.0003504,2]
[357100516,1743742250808,-150.0,0.00035055,2]
[357100517,1743742250817,-1000.0,0.00035058,2]
[357100518,1743742250827,-777.68,0.00035068,2]
[357100519,1743742250836,-400.0,0.0003507,2]
[357100520,1743742250846,-400.0,0.0003507,2]
[357100521,1743742250856,-400.0,0.0003507,2]
[357100522,1743742250866,-622.92774855,0.0003507,2]
[357100523,1743742250878,-400.0,0.0003507,2]
[357100524,1743742250888,-400.0,0.0003507,2]
[357100525,1743742250897,-301.0,0.00035098,5]
[357100526,1743742250907,-150.0,0.00035098,2]
[357100527,1743742250918,-373.0,0.000351,2]
[357100528,1743742250928,-756.0,0.000351,2]
[357100529,1743742250937,-236.0,0.000351,2]
[357100530,1743742250947,-150.0,0.00035102,2]
[357100531,1743742250957,-537.25985506,0.0003511,13]
[357100532,1743742250968,-253.51277305,0.00035112,30]
[357100533,1743742250978,-265.0,0.00035112,30]
[357100534,1743742250988,-317.59,0.00035113,30]
[357100535,1743742250998,-150.0,0.00035115,2]
[357100536,1743742251008,-1094.93136689,0.00035115,2]
[357100537,1743742251020,-200.0,0.00035115,2]
[357100538,1743742251029,-200.0,0.00035115,2]
[357100539,1743742251039,-500.0,0.00035116,60]
[357100540,1743742251048,-198.75834778,0.0003515,2]
[357100541,1743742251058,-273.21421063,0.00035205,30]
[357100542,1743742251068,-150.0,0.00035205,31]
[357100543,1743742251077,-150.0,0.00035205,31]
[357100544,1743742251087,-759.66640559,0.00035228,2]
[357100545,1743742251097,-2318.13517035,0.00035228,2]